bitfinex-derivatives/quotes_BTCF0:USTF0_20251108
["timestamp","ask_amount","ask_price","bid_price","bid_amount"]
[1762632680063,0.00014702,102050.0,102040.0,1.07916536]
[1762632680261,0.00014702,102050.0,102040.0,0.86909636]
[1762632680460,0.00014702,102050.0,102040.0,1.11409636]
[1762632680661,0.00014702,102050.0,102040.0,1.07916536]
[1762632680860,0.00014702,102050.0,102040.0,0.83416536]
[1762632681257,0.00014702,102050.0,102040.0,1.07916536]
[1762632681665,0.00014702,102050.0,102040.0,0.83416536]
[1762632681850,0.00014702,102050.0,102040.0,1.07916536]
[1762632682664,0.00014702,102050.0,102040.0,0.83416536]
[1762632682968,0.00014702,102050.0,102040.0,1.07916536]
[1762632684658,0.00014702,102050.0,102040.0,0.83416536]
[1762632689371,0.00014702,102050.0,102040.0,1.07916536]
[1762632690076,0.00014702,102050.0,102040.0,0.83416536]
[1762632690378,0.00014702,102050.0,102040.0,1.07916536]
[1762632691268,0.00014702,102050.0,102040.0,0.83416536]
[1762632691471,0.00014702,102050.0,102040.0,1.07916536]
[1762632692667,0.00014702,102050.0,102040.0,0.83416536]
[1762632692876,0.00014702,102050.0,102040.0,1.07916536]
[1762632693076,0.00014702,102050.0,102040.0,0.83416536]
[1762632693277,0.00014702,102050.0,102040.0,1.07916536]
[1762632694067,2e-08,102050.0,102040.0,0.83416536]
[1762632694468,2e-08,102050.0,102040.0,1.07916536]
[1762632695163,2e-08,102050.0,102040.0,0.83416536]
[1762632695378,2e-08,102050.0,102040.0,1.07916536]
[1762632697675,2e-08,102050.0,102040.0,0.83416536]
[1762632697979,0.41789,102080.0,102070.0,0.140864]
[1762632698177,0.41789,102080.0,102070.0,0.40449077]
[1762632698379,0.41789,102080.0,102070.0,0.289164]
[1762632698583,0.41789,102080.0,102070.0,0.40449077]
[1762632700873,0.41789,102080.0,102070.0,0.41761077]
[1762632701075,0.40412,102080.0,102070.0,0.41761077]
[1762632702190,0.40412,102080.0,102070.0,0.45251772]
[1762632702790,0.04332,102080.0,102070.0,0.81331772]
[1762632703492,0.40426702,102090.0,102080.0,0.1539744]
[1762632703694,0.40426702,102090.0,102080.0,0.26930117]
[1762632703991,0.40426702,102090.0,102080.0,0.81814117]
[1762632704590,0.40626702,102090.0,102080.0,0.81814117]
[1762632705383,0.04646702,102090.0,102080.0,0.81814117]
[1762632709593,0.02518702,102090.0,102080.0,0.81814117]
[1762632709798,0.00314702,102090.0,102080.0,1.21384812]
[1762632710298,0.04747702,102090.0,102080.0,1.2939709]
[1762632711095,0.06135702,102090.0,102080.0,0.9331709]
[1762632712099,0.04747702,102090.0,102080.0,0.9331709]
[1762632714301,0.04747702,102090.0,102080.0,1.0814709]
[1762632720608,0.00314702,102090.0,102080.0,1.47717785]
[1762632720806,0.00314702,102090.0,102080.0,1.5923561]
[1762632721308,0.00214702,102090.0,102080.0,1.5933561]
[1762632722211,0.04527702,102090.0,102080.0,0.92933785]
[1762632722414,0.04527702,102090.0,102080.0,1.11825785]
[1762632722908,0.04527702,102090.0,102080.0,1.47905785]
[1762632723213,0.02314702,102090.0,102080.0,1.47905785]
[1762632724216,0.00014702,102090.0,102080.0,1.47905785]
[1762632727415,0.02314702,102090.0,102080.0,1.53141828]
[1762632728218,0.04527702,102090.0,102080.0,1.53141828]
[1762632731323,0.04527702,102090.0,102080.0,1.49651133]
[1762632731926,0.05912702,102090.0,102080.0,1.05552386]
[1762632732117,0.53510527,102090.0,102080.0,1.05552386]
[1762632732422,0.41992702,102090.0,102080.0,1.05552386]
[1762632733117,0.41992702,102090.0,102080.0,0.99004343]
[1762632733523,0.41992702,102090.0,102080.0,0.98904343]
[1762632734324,0.41992702,102090.0,102080.0,0.98804343]
[1762632734525,0.41992702,102090.0,102080.0,0.98904343]
[1762632735225,0.41992702,102090.0,102080.0,0.87286518]
[1762632735526,0.53510527,102090.0,102080.0,0.98804343]
[1762632736724,0.41992702,102090.0,102080.0,0.98804343]
[1762632737419,0.53510527,102090.0,102080.0,0.87286518]
[1762632737813,0.63309007,102090.0,102080.0,0.72456518]
[1762632738012,0.63309007,102090.0,102080.0,0.59158]
[1762632738228,0.63309007,102090.0,102080.0,0.6895744]
[1762632738727,0.53510527,102090.0,102080.0,0.6895744]
[1762632739628,0.53710527,102090.0,102080.0,0.6895744]
[1762632740426,0.53710527,102090.0,102080.0,0.80475265]
[1762632740622,0.53810527,102090.0,102080.0,0.80475265]
[1762632741826,0.63608997,102090.0,102080.0,0.80475265]
[1762632742527,0.52091172,102090.0,102080.0,0.80475265]
[1762632742725,0.63608997,102090.0,102080.0,0.80475265]
[1762632743928,0.53810527,102090.0,102080.0,0.80475265]
[1762632745232,0.63608997,102090.0,102080.0,0.6895743]
[1762632745532,0.63608997,102090.0,102080.0,0.80475255]
[1762632746327,0.63608997,102090.0,102080.0,0.59158]
[1762632746523,0.63608997,102090.0,102080.0,0.6895743]
[1762632750932,0.63608997,102090.0,102080.0,0.6683543]
[1762632751232,0.63608997,102090.0,102080.0,0.6906143]
[1762632751431,0.63608997,102090.0,102080.0,0.57036]
[1762632751624,0.67127085,102090.0,102080.0,0.54872]
[1762632751824,0.7864491,102090.0,102080.0,0.54872]
[1762632752830,0.67127085,102090.0,102080.0,0.54872]
[1762632754632,0.7864491,102090.0,102080.0,0.54872]
[1762632754934,0.98706068,102090.0,102080.0,0.01972]
[1762632756025,0.93430256,102090.0,102080.0,0.01972]
[1762632759033,0.98706068,102090.0,102080.0,0.01972]
[1762632759230,0.1426539,102070.0,102060.0,0.38230945]
[1762632759430,0.97943215,102070.0,102060.0,0.38230945]
[1762632760529,0.97943215,102070.0,102060.0,0.38330945]
[1762632760729,0.88142825,102070.0,102060.0,0.38330945]
[1762632761036,0.97943215,102070.0,102060.0,0.38330945]
[1762632762435,0.98043215,102070.0,102060.0,0.38230945]
[1762632765036,0.76725,102070.0,102060.0,0.4974877]
[1762632765226,0.8652539,102070.0,102060.0,0.4974877]
[1762632765431,0.98043215,102070.0,102060.0,0.4974877]
[1762632767140,0.88242825,102070.0,102060.0,0.4974877]
[1762632767443,0.98043215,102070.0,102060.0,0.4974877]
[1762632770544,0.8652539,102070.0,102060.0,0.38230945]
[1762632775851,0.8652539,102070.0,102060.0,0.23400945]
[1762632776052,0.8652539,102070.0,102060.0,0.14279252]
[1762632776053,0.98896084,102070.0,102060.0,0.14279252]
[1762632776253,0.98896084,102070.0,102060.0,0.00014702]
[1762632777957,0.98896084,102070.0,102060.0,0.09816052]
[1762632778252,0.98896084,102070.0,102060.0,0.14266052]
[1762632780748,0.98896084,102070.0,102060.0,0.14266062]
[1762632783057,1.02414172,102070.0,102060.0,0.14266062]
[1762632788055,0.90043478,102070.0,102060.0,0.15650062]
[1762632788258,0.8652539,102070.0,102060.0,0.15650062]
[1762632791466,0.90043478,102070.0,102060.0,0.15650062]
[1762632792460,0.8652539,102070.0,102060.0,0.15650062]
[1762632792659,0.90043478,102070.0,102060.0,0.15650062]
[1762632795860,1.01570172,102070.0,102060.0,0.15650062]
[1762632798866,1.01570172,102070.0,102060.0,0.04464702]
[1762632799069,1.01570172,102070.0,102060.0,0.00014702]
[1762632800164,1.06845984,102070.0,102060.0,0.00014702]
[1762632803268,1.01570172,102070.0,102060.0,0.00014702]
[1762632807468,1.06845984,102070.0,102060.0,0.00014702]
[1762632807672,0.25859994,102050.0,102040.0,0.96821547]
[1762632807866,0.61939994,102050.0,102040.0,0.96821547]
[1762632808068,0.63237994,102050.0,102040.0,0.96821547]
[1762632808374,0.63237994,102050.0,102040.0,0.41941547]
[1762632808964,0.61939994,102050.0,102040.0,0.41941547]
[1762632809165,0.61939994,102050.0,102040.0,0.42141547]
[1762632809874,0.61939994,102050.0,102040.0,0.42341547]
[1762632810573,0.98019994,102050.0,102040.0,0.42341547]
[1762632810775,0.98019994,102050.0,102040.0,0.27511547]
[1762632810968,0.98019994,102050.0,102040.0,0.24012469]
[1762632811168,0.99317994,102050.0,102040.0,0.10605829]
[1762632811673,0.99317994,102050.0,102040.0,0.12894829]
[1762632812372,0.99317994,102050.0,102040.0,0.04865]
[1762632813074,0.99317994,102050.0,102040.0,0.1237926]
[1762632813868,0.99317994,102050.0,102040.0,0.1466826]
[1762632814165,0.99317994,102050.0,102040.0,0.004]
[1762632814369,0.99317994,102050.0,102040.0,0.1466826]
[1762632816074,0.99317994,102050.0,102040.0,0.04865]
[1762632816377,1.17482891,102050.0,102040.0,0.004]
[1762632816587,1.22758703,102050.0,102040.0,0.004]
[1762632817375,1.22958703,102050.0,102040.0,0.002]
[1762632818179,1.17682891,102050.0,102040.0,0.002]
[1762632818569,1.17682891,102050.0,102030.0,0.00014702]
[1762632818773,0.62871954,102040.0,102030.0,0.04479702]
[1762632819174,0.77600234,102040.0,102030.0,0.04479702]
[1762632819879,0.78000234,102040.0,102030.0,0.04479702]
[1762632820379,0.78200234,102040.0,102030.0,0.04479702]
[1762632822282,0.78200234,102040.0,102030.0,0.14283922]
[1762632824485,0.78200234,102040.0,102030.0,0.14170932]
[1762632824669,0.78200234,102040.0,102030.0,0.04366702]
[1762632826488,0.78200234,102040.0,102030.0,0.14170922]
[1762632827186,0.78200234,102040.0,102030.0,0.04366702]
[1762632828786,0.78200234,102040.0,102030.0,0.14170932]
[1762632829472,0.78200234,102040.0,102030.0,0.04366702]
[1762632832286,0.6667354,102040.0,102030.0,0.04366702]
[1762632832487,0.8974598,102040.0,102030.0,0.04366702]
[1762632834495,1.2582598,102040.0,102030.0,0.04366702]
[1762632835393,1.0275354,102040.0,102030.0,0.04366702]
[1762632835589,1.2582598,102040.0,102030.0,0.04366702]
[1762632837788,1.0275354,102040.0,102030.0,0.04366702]
[1762632837989,1.2582598,102040.0,102030.0,0.04366702]
[1762632838503,1.373622,102040.0,102030.0,0.00014702]
[1762632838690,1.0275354,102040.0,102030.0,0.00014702]
[1762632838997,1.2582598,102040.0,102030.0,0.00014702]
[1762632840203,1.29344068,102040.0,102030.0,0.00014702]
[1762632842199,1.29344068,102040.0,102030.0,0.14320922]
[1762632843300,1.29344068,102040.0,102030.0,0.04516702]
[1762632843496,1.29344068,102040.0,102030.0,0.02343702]
[1762632843894,1.29344068,102040.0,102030.0,0.00014702]
[1762632844907,1.29344068,102040.0,102030.0,0.02343702]
[1762632845099,1.29344068,102040.0,102030.0,0.14320922]
[1762632847408,1.461561,102040.0,102030.0,0.00014702]
[1762632847717,1.42638012,102040.0,102030.0,0.00014702]
[1762632847905,1.31101792,102040.0,102030.0,0.00014702]
[1762632848605,0.1485222,102030.0,102020.0,0.1483]
[1762632848806,0.77533694,102030.0,102020.0,0.1483]
[1762632849912,0.65997474,102030.0,102020.0,0.1483]
[1762632850205,0.66197474,102030.0,102020.0,0.1483]
[1762632850404,0.54661254,102030.0,102020.0,0.1483]
[1762632850605,0.77733694,102030.0,102020.0,0.1483]
[1762632850907,0.77833694,102030.0,102020.0,0.1483]
[1762632852206,0.1418318,102020.0,102010.0,0.38319513]
[1762632852506,0.7333562,102020.0,102010.0,0.28513683]
[1762632852809,0.7402062,102020.0,102010.0,0.28513683]
[1762632853408,0.7402062,102020.0,102010.0,0.38319823]
[1762632853609,0.7412062,102020.0,102010.0,0.38319823]
[1762632854409,0.7412062,102020.0,102010.0,0.30545691]
[1762632856112,0.7412062,102020.0,102010.0,0.29161691]
[1762632859920,0.7412062,102020.0,102010.0,0.30468691]
[1762632866925,1.1020062,102020.0,102010.0,0.30468691]
[1762632869827,1.1020062,102020.0,102010.0,0.15638691]
[1762632870421,0.3804062,102020.0,102010.0,0.15638691]
[1762632870727,1.1020062,102020.0,102010.0,0.15638691]
[1762632871425,0.3804062,102020.0,102010.0,0.15638691]
[1762632871627,1.1020062,102020.0,102010.0,0.15638691]
[1762632872623,1.1020062,102020.0,102010.0,0.05832551]
[1762632873125,1.36359375,102020.0,102010.0,0.00023551]
[1762632873326,0.1505312,102000.0,101990.0,0.04439]
[1762632873627,1.1028556,102000.0,101990.0,0.1561008]
[1762632874526,1.1028556,102000.0,101990.0,0.1581008]
[1762632875418,1.1028556,102000.0,101990.0,0.1601008]
[1762632877224,1.0047844,102000.0,101990.0,0.1601008]
[1762632877425,1.0937855,102000.0,101990.0,0.1601008]
[1762632877621,0.8803522,102000.0,101990.0,0.1601008]
[1762632877927,0.9784233,102000.0,101990.0,0.1601008]
[1762632878429,0.8803522,102000.0,101990.0,0.1601008]
[1762632878727,0.9784233,102000.0,101990.0,0.1601008]
[1762632878922,0.8803522,102000.0,101990.0,0.1601008]
[1762632881732,0.9784233,102000.0,101990.0,0.1601008]
[1762632884326,0.8630611,102000.0,101990.0,0.1601008]
[1762632884521,0.9784233,102000.0,101990.0,0.1601008]
[1762632886931,0.76499,102000.0,101990.0,0.1601008]
[1762632887132,0.9784232,102000.0,101990.0,0.1601008]
[1762632887830,0.8803522,102000.0,101990.0,0.1601008]
[1762632889226,0.8803522,102000.0,101990.0,0.275463]
[1762632889426,0.74306,102000.0,101990.0,0.275463]
[1762632890126,0.74306,102000.0,101990.0,0.31045378]
[1762632890929,0.76579,102000.0,101990.0,0.31045378]
[1762632893242,0.76579,102000.0,101990.0,0.45875378]
[1762632894339,0.76579,102000.0,101990.0,0.45880412]
[1762632897732,0.863861,102000.0,101990.0,0.3084008]
[1762632898240,0.76579,102000.0,101990.0,0.34339158]
[1762632899439,0.863861,102000.0,101990.0,0.34339158]
[1762632900630,0.863861,102000.0,101990.0,0.19509158]
[1762632901333,0.76579,102000.0,101990.0,0.19509158]
[1762632903040,0.76579,102000.0,101990.0,0.31050412]
[1762632905941,0.76579,102000.0,101990.0,0.19509158]
[1762632906143,0.76579,102000.0,101990.0,0.31050412]
[1762632908337,0.76579,102000.0,101990.0,0.19509158]
[1762632910335,0.863861,102000.0,101990.0,0.19509158]
[1762632910727,0.76579,102000.0,101990.0,0.19509158]
[1762632910932,0.76579,102000.0,101990.0,0.34339158]
[1762632913645,0.863861,102000.0,101990.0,0.34339158]
[1762632913940,0.76579,102000.0,101990.0,0.34339158]
[1762632915442,0.76579,102000.0,101990.0,0.45880412]
[1762632915940,0.76579,102000.0,101990.0,0.34339158]
[1762632918339,0.76579,102000.0,101990.0,0.45880412]
[1762632923746,0.40499,102000.0,101990.0,0.45880412]
[1762632923940,0.40499,102000.0,101990.0,0.51116455]
[1762632928249,0.40499,102000.0,101990.0,0.39575201]
[1762632931653,0.5030611,102000.0,101990.0,0.39575201]
[1762632931851,0.40499,102000.0,101990.0,0.39575201]
[1762632932750,0.40499,102000.0,101990.0,0.34339158]
[1762632933454,0.40499,102000.0,101990.0,0.39575201]
[1762632934155,0.40499,102000.0,101990.0,0.34339158]
[1762632934354,0.40499,102000.0,101990.0,0.39575201]
[1762632936246,0.40499,102000.0,101990.0,0.34339158]
[1762632941961,0.5030611,102000.0,101990.0,0.34339158]
[1762632943762,0.5030611,102000.0,101990.0,0.39575201]
[1762632946264,0.40499,102000.0,101990.0,0.39575201]
[1762632951862,0.5030611,102000.0,101990.0,0.39575201]
[1762632955069,0.5030612,102000.0,101990.0,0.39575201]
[1762632956370,0.61848516,102000.0,101990.0,0.51117597]
[1762632956566,0.61848516,102000.0,101990.0,0.45881554]
[1762632960366,0.52041396,102000.0,101990.0,0.45881554]
[1762632961266,0.62787496,102000.0,101990.0,0.44518554]
[1762632963077,0.62787496,102000.0,101990.0,0.45779554]
[1762632963278,0.61848496,102000.0,101990.0,0.45779554]
[1762632965676,0.62787496,102000.0,101990.0,0.34237158]
[1762632965976,0.62787496,102000.0,101990.0,0.45779554]
[1762632968684,0.61848496,102000.0,101990.0,0.45779554]
[1762632969493,0.40499,102000.0,101990.0,0.45779554]
[1762632969688,0.52041396,102000.0,101990.0,0.45779554]
[1762632970189,0.61848496,102000.0,101990.0,0.45779554]
[1762632970579,0.52041396,102000.0,101990.0,0.45779554]
[1762632976802,0.40499,102000.0,101990.0,0.45779554]
[1762632976997,0.52041396,102000.0,101990.0,0.45779554]
[1762632979294,0.38226,102000.0,101990.0,0.62557993]
[1762632979489,0.40341702,102010.0,102000.0,0.155461]
[1762632979690,0.40341702,102010.0,102000.0,0.30606354]
[1762632980399,0.04261702,102010.0,102000.0,0.5697875]
[1762632980598,0.04261702,102010.0,102000.0,0.62214793]
[1762632980989,0.04261702,102010.0,102000.0,0.58696935]
[1762632981691,0.04261702,102010.0,102000.0,0.58796935]
[1762632982202,0.04261702,102010.0,102000.0,0.62308916]
[1762632983397,0.00014702,102010.0,102000.0,0.95101312]
[1762632983604,7.836e-05,102020.0,102010.0,0.1554514]
[1762632983801,7.836e-05,102020.0,102010.0,0.47405707]
[1762632984305,7.836e-05,102020.0,102010.0,0.83485707]
[1762632984706,0.00107836,102020.0,102010.0,0.83485707]
[1762632987011,0.00107836,102020.0,102010.0,1.07993707]
[1762632987212,0.00107836,102020.0,102010.0,1.07987903]
[1762632987510,0.00107836,102020.0,102010.0,0.83479903]
[1762632987810,7.836e-05,102020.0,102010.0,0.83479903]
[1762632988309,7.836e-05,102020.0,102010.0,0.83579903]
[1762632990002,7.836e-05,102020.0,102010.0,0.98409903]
[1762632992306,7.836e-05,102020.0,102010.0,0.93144438]
[1762633001421,7.836e-05,102020.0,102010.0,0.98409903]
[1762633001721,7.836e-05,102020.0,102010.0,0.93144438]
[1762633002420,7.836e-05,102020.0,102010.0,0.98409903]
[1762633004723,0.02274702,102030.0,102020.0,0.05828]
[1762633005019,0.00014702,102030.0,102020.0,0.78302488]
[1762633006125,0.40678,102050.0,102040.0,0.1582827]
[1762633006326,0.40678,102050.0,102040.0,0.53743062]
[1762633007919,0.40878,102050.0,102040.0,0.53743062]
[1762633008118,0.41278,102050.0,102040.0,0.53743062]
[1762633009828,0.41278,102050.0,102040.0,1.08651062]
[1762633010620,0.5108031,102050.0,102040.0,0.8556627]
[1762633010820,0.5108031,102050.0,102040.0,0.97108666]
[1762633012128,0.41278,102050.0,102040.0,0.97108666]
[1762633013723,0.41278,102050.0,102040.0,1.08651062]
[1762633014117,0.40678,102050.0,102040.0,1.08651062]
[1762633014320,0.40778,102050.0,102040.0,1.08651062]
[1762633018426,0.40778,102050.0,102040.0,0.97095278]
[1762633019631,0.40778,102050.0,102040.0,1.00599784]
[1762633025840,0.04698,102050.0,102040.0,1.00599784]
[1762633026041,0.001,102050.0,102040.0,1.00599784]
[1762633026640,0.02405,102050.0,102040.0,1.00599784]
[1762633027134,0.001,102050.0,102040.0,1.00599784]
[1762633027436,0.001,102050.0,102040.0,1.41945249]
[1762633029237,0.00014702,102060.0,102040.0,1.51748519]
[1762633029437,0.00014702,102060.0,102050.0,0.30497824]
[1762633030238,0.00014702,102060.0,102050.0,0.45327824]
[1762633030645,0.00014702,102060.0,102050.0,0.50593289]
[1762633031748,0.00214702,102060.0,102050.0,0.50593289]
[1762633032346,0.00114702,102060.0,102050.0,0.50593289]
[1762633032550,0.00314702,102060.0,102050.0,0.50593289]
[1762633033655,0.00314702,102060.0,102050.0,0.86673289]
[1762633033843,0.00314702,102060.0,102050.0,0.79867791]
[1762633034155,0.40495,102080.0,102070.0,0.1546239]
[1762633034453,0.40495,102080.0,102070.0,0.26991398]
[1762633035756,0.40595,102080.0,102070.0,0.26991398]
[1762633036148,0.5066643,102080.0,102070.0,0.05662]
[1762633036345,0.40867,102080.0,102070.0,0.1546239]
[1762633036850,0.5066643,102080.0,102070.0,0.1546239]
[1762633040852,0.40867,102080.0,102070.0,0.1546239]
[1762633041056,0.40595,102080.0,102070.0,0.1546239]
[1762633041259,0.5039443,102080.0,102070.0,0.1546239]
[1762633041955,0.5039443,102080.0,102070.0,0.26991398]
[1762633042357,0.5039443,102080.0,102070.0,0.1546239]
[1762633042859,0.5039443,102080.0,102070.0,0.23158255]
[1762633045860,0.1431443,102080.0,102070.0,0.34687263]
[1762633046066,0.8647443,102080.0,102070.0,0.34687263]
[1762633048661,0.8647443,102080.0,102070.0,0.49517263]
[1762633050757,0.8741643,102080.0,102070.0,0.17496255]
[1762633050962,0.1516839,102070.0,102060.0,0.24646052]
[1762633051261,0.62777398,102070.0,102060.0,0.24646052]
[1762633052164,0.62777398,102070.0,102060.0,0.24846052]
[1762633054462,0.62777398,102070.0,102060.0,0.10016052]
[1762633054864,0.40509,102070.0,102060.0,0.2732906]
[1762633055966,0.5030939,102070.0,102060.0,0.2732906]
[1762633056264,0.5124839,102070.0,102060.0,0.2385006]
[1762633056464,0.5124839,102070.0,102060.0,0.2601506]
[1762633060667,0.5124839,102070.0,102060.0,0.2385006]
[1762633061166,0.5124839,102070.0,102060.0,0.2601506]
[1762633062468,0.5124839,102070.0,102060.0,0.2385006]
[1762633062770,0.5124839,102070.0,102060.0,0.2154506]
[1762633063859,0.5124839,102070.0,102060.0,0.10016052]
[1762633064061,0.5124839,102070.0,102060.0,0.14474052]
[1762633064665,0.5124839,102070.0,102060.0,0.15736052]
[1762633064964,0.40509,102070.0,102060.0,0.2726506]
[1762633066773,0.38278,102070.0,102060.0,0.2726506]
[1762633067066,0.4054,102070.0,102060.0,0.30770807]
[1762633067264,0.0446,102070.0,102060.0,0.30770807]
[1762633067469,0.0446,102070.0,102060.0,0.8364528]
[1762633072073,0.0446,102070.0,102060.0,0.9847528]
[1762633074578,0.02198,102070.0,102060.0,0.9847528]
[1762633074776,0.40592,102080.0,102070.0,0.05736]
[1762633074975,0.40592,102080.0,102070.0,0.27065398]
[1762633077875,0.40592,102080.0,102070.0,0.96783398]
[1762633080378,0.40592,102080.0,102070.0,0.9677721]
[1762633081882,0.40595,102080.0,102070.0,1.0830003]
[1762633082072,0.40595,102080.0,102070.0,1.11805777]
[1762633082276,0.40595,102080.0,102070.0,1.00282957]
[1762633082474,0.40595,102080.0,102070.0,0.88760137]
[1762633082676,0.40595,102080.0,102070.0,1.00282957]
[1762633083983,0.40595,102080.0,102070.0,0.9677721]
[1762633086481,0.40595,102080.0,102070.0,0.4071621]
[1762633086677,0.7440907,102080.0,102070.0,0.1483]
[1762633086882,0.6288625,102080.0,102070.0,0.1483]
[1762633087789,0.6288625,102080.0,102070.0,0.2463039]
[1762633087985,0.6288625,102080.0,102070.0,0.1483]
[1762633088176,0.6288625,102080.0,102070.0,0.2463039]
[1762633088376,0.6288625,102080.0,102070.0,0.2676939]
[1762633089286,0.6288625,102080.0,102070.0,0.2463039]
[1762633089475,0.7440907,102080.0,102070.0,0.1483]
[1762633089674,0.1510639,102070.0,102060.0,0.85174169]
[1762633089878,0.6270921,102070.0,102060.0,0.79530052]
[1762633090381,0.6270921,102070.0,102060.0,0.69728702]
[1762633090584,0.6270921,102070.0,102060.0,0.79530052]
[1762633090886,0.6270921,102070.0,102060.0,0.81769052]
[1762633091074,0.6270921,102070.0,102060.0,0.81869052]
[1762633091881,0.6270921,102070.0,102060.0,0.69928702]
[1762633092089,0.6270921,102070.0,102060.0,0.79730052]
[1762633092586,0.6270921,102070.0,102060.0,0.69928702]
[1762633093488,0.77360614,102070.0,102060.0,0.55098702]
[1762633094378,0.80886252,102070.0,102060.0,0.55098702]
[1762633095488,0.80886252,102070.0,102060.0,0.64900052]
[1762633095691,0.77360614,102070.0,102060.0,0.69281052]
[1762633096991,0.77360614,102070.0,102060.0,0.70614052]
[1762633097289,0.76421614,102070.0,102060.0,0.70614052]
[1762633097485,0.77360614,102070.0,102060.0,0.69281052]
[1762633097690,0.77360614,102070.0,102060.0,0.67039052]
[1762633098378,0.77360614,102070.0,102060.0,0.57237702]
[1762633098692,0.80886252,102070.0,102060.0,0.55098702]
[1762633099783,0.80886252,102070.0,102060.0,0.57237702]
[1762633100786,0.77360614,102070.0,102060.0,0.57237702]
[1762633101086,0.77360614,102070.0,102060.0,0.59479702]
[1762633101688,0.77360614,102070.0,102060.0,0.69281052]
[1762633103195,0.77360614,102070.0,102060.0,0.70614052]
[1762633103988,0.77360614,102070.0,102060.0,0.60812702]
[1762633104595,0.77360614,102070.0,102060.0,0.59479702]
[1762633105187,0.77360614,102070.0,102060.0,0.04595702]
[1762633105999,0.77360614,102070.0,102060.0,0.00214702]
[1762633107193,0.80886252,102070.0,102060.0,0.04455702]
[1762633107992,0.80886252,102070.0,102060.0,0.00214702]
[1762633108896,0.92409072,102070.0,102060.0,0.00214702]
[1762633111901,0.80886252,102070.0,102060.0,0.04455702]
[1762633112290,1.16966252,102070.0,102060.0,0.00214702]
[1762633113800,1.16966252,102070.0,102060.0,0.02345702]
[1762633113993,1.16966252,102070.0,102060.0,0.12147052]
[1762633115901,1.16966252,102070.0,102060.0,0.14252052]
[1762633117102,1.22242064,102070.0,102060.0,0.14252052]
[1762633117396,1.04504432,102070.0,102060.0,0.15535052]
[1762633117601,1.16027252,102070.0,102060.0,0.27057872]
[1762633118298,1.21303064,102070.0,102060.0,0.27057872]
[1762633118799,1.16027252,102070.0,102060.0,0.27057872]
[1762633118998,0.89853028,102070.0,102060.0,0.27057872]
[1762633120100,0.9512884,102070.0,102060.0,0.27057872]
[1762633120998,0.89853028,102070.0,102060.0,0.27057872]
[1762633121199,0.9512884,102070.0,102060.0,0.27057872]
[1762633121500,0.76527,102070.0,102060.0,0.38580692]
[1762633121897,0.76527,102070.0,102060.0,0.27057872]
[1762633122096,0.80052638,102070.0,102060.0,0.27057872]
[1762633122492,0.89853038,102070.0,102060.0,0.27057872]
[1762633124905,0.80052638,102070.0,102060.0,0.27057872]
[1762633125200,0.76527,102070.0,102060.0,0.27057872]
[1762633126701,0.76527,102070.0,102060.0,0.38580692]
[1762633127003,0.40447,102070.0,102060.0,0.38580692]
[1762633127898,0.3608,102070.0,102060.0,0.38580692]
[1762633128103,0.3608,102080.0,102070.0,0.0980012]
[1762633128295,0.1782982,102090.0,102080.0,0.1553944]
[1762633128596,0.76665702,102090.0,102080.0,0.2706226]
[1762633129802,0.76665702,102090.0,102080.0,0.3858508]
[1762633130403,0.76665702,102090.0,102080.0,0.2706226]
[1762633130899,0.86464182,102090.0,102080.0,0.2706226]
[1762633131209,0.86564182,102090.0,102080.0,0.2706226]
[1762633131505,0.76765702,102090.0,102080.0,0.2706226]
[1762633135210,0.86564172,102090.0,102080.0,0.2706226]
[1762633135710,0.76765702,102090.0,102080.0,0.2706226]
[1762633136507,0.76765702,102090.0,102080.0,0.34890626]
[1762633138809,0.76765702,102090.0,102080.0,0.46413446]
[1762633142306,0.76765702,102090.0,102080.0,0.34888393]
[1762633143416,0.40685702,102090.0,102080.0,0.34888393]
[1762633145012,0.40585702,102090.0,102080.0,0.34888393]
[1762633145412,0.40585702,102090.0,102080.0,0.49718393]
[1762633147309,0.40585702,102090.0,102080.0,0.38197806]
[1762633147509,0.50384172,102090.0,102080.0,0.49718393]
[1762633150607,0.40585702,102090.0,102080.0,0.49718393]
[1762633151510,0.50384182,102090.0,102080.0,0.49718393]
[1762633154320,0.40585702,102090.0,102080.0,0.49718393]
[1762633157019,0.00014702,102090.0,102080.0,0.5322414]
[1762633157418,0.00014702,102090.0,102080.0,0.58489605]
[1762633157820,0.04349702,102090.0,102080.0,0.58489605]
[1762633160421,0.04349702,102090.0,102080.0,0.58589605]
[1762633160621,0.04349702,102090.0,102080.0,0.58689605]
[1762633161711,0.00014702,102090.0,102080.0,0.8950414]
[1762633161917,0.00014702,102090.0,102080.0,0.91263858]
[1762633162323,0.00014702,102090.0,102080.0,0.94771461]
[1762633164430,0.02228702,102090.0,102080.0,0.58691461]
[1762633168231,0.00014702,102090.0,102080.0,0.58691461]
[1762633171724,0.3608,102100.0,102090.0,0.1550947]
[1762633171930,0.40717,102110.0,102100.0,0.1550851]
[1762633172226,0.40717,102110.0,102100.0,0.45366346]
[1762633172227,0.38405,102110.0,102100.0,0.45366346]
[1762633172430,0.38405,102110.0,102100.0,0.41859097]
[1762633172931,0.40717,102110.0,102100.0,0.41859097]
[1762633173231,0.40717,102110.0,102100.0,0.45366346]
[1762633174327,0.40817,102110.0,102100.0,0.41859097]
[1762633177022,0.3618,102110.0,102100.0,0.41859097]
[1762633177225,0.40817,102110.0,102100.0,0.41859097]
[1762633180732,0.40717,102110.0,102100.0,0.41959097]
[1762633181336,0.40717,102110.0,102100.0,0.42059097]
[1762633182737,0.3608,102110.0,102100.0,0.42059097]
[1762633183036,0.38381,102110.0,102100.0,0.42059097]
[1762633184540,0.02301,102110.0,102100.0,0.45566346]
[1762633185632,0.40723702,102120.0,102100.0,0.50991856]
[1762633185826,0.0601,102110.0,102100.0,0.28334759]
[1762633186022,0.0601,102110.0,102100.0,0.39855346]
[1762633186227,0.0601,102110.0,102100.0,0.28334759]
[1762633186538,0.0601,102110.0,102100.0,0.39855346]
[1762633189948,0.0601,102110.0,102100.0,0.94723346]
[1762633195452,0.0601,102110.0,102100.0,0.99988811]
[1762633197246,0.01381,102110.0,102100.0,1.36068811]
[1762633197855,0.03547,102110.0,102100.0,1.36068811]
[1762633198043,0.03547,102110.0,102100.0,1.32561562]
[1762633200360,0.01381,102110.0,102100.0,1.32561562]
[1762633200849,0.03547,102110.0,102100.0,1.32561562]
[1762633201956,0.05861,102110.0,102100.0,1.21040975]
[1762633202151,0.05861,102110.0,102100.0,1.32561562]
[1762633204456,0.05861,102110.0,102100.0,1.44068929]
[1762633206358,0.05861,102110.0,102100.0,1.07988929]
[1762633207049,0.41941,102110.0,102100.0,1.07988929]
[1762633207561,0.41941,102110.0,102100.0,0.96474952]
[1762633208062,0.41941,102110.0,102100.0,1.07988929]
[1762633208862,0.41941,102110.0,102100.0,0.96474952]
[1762633209259,0.53454977,102110.0,102100.0,0.41606952]
[1762633209463,0.63251527,102110.0,102100.0,0.33598866]